bitfinex/quotes_ETHUSD_20250404
["timestamp","ask_amount","ask_price","bid_price","bid_amount"]
[1743779891792,5.50162,1817.7,1817.3,0.20250064]
[1743779892082,5.50162,1817.7,1817.3,5.70515064]
[1743779892317,5.50162,1817.7,1817.4,0.20250064]
[1743779892494,5.50118,1817.8,1817.4,5.70486064]
[1743779892698,5.50118,1817.8,1817.4,0.20250064]
[1743779892923,0.1,1817.9,1817.6,5.50158]
[1743779893096,0.1,1817.9,1817.7,0.05500875]
[1743779893607,0.1,1817.9,1817.8,0.20250064]
[1743779894008,0.1,1817.9,1817.8,5.70365064]
[1743779894220,0.1,1817.9,1817.8,6.47355064]
[1743779894724,0.1,1817.9,1817.8,6.86722398]
[1743779894885,0.1,1817.9,1817.8,0.59617398]
[1743779895079,5.60085,1817.9,1817.8,0.20250064]
[1743779895286,6.78807,1817.9,1817.8,0.20250064]
[1743779895796,6.78807,1817.9,1817.4,0.39367334]
[1743779895797,1.28722,1817.9,1817.3,0.39367334]
[1743779896111,5.50202,1817.6,1817.4,0.20251167]
[1743779896316,6.32226,1817.5,1817.4,0.20251167]
[1743779896521,6.32226,1817.5,1817.2,0.39367334]
[1743779896522,5.50266,1817.3,1817.2,0.39367334]
[1743779896692,11.00699,1817.1,1816.7,0.20264377]
[1743779896890,5.50298,1817.2,1816.7,5.70700377]
[1743779897230,5.50329,1817.1,1816.8,0.20264377]
[1743779897428,8.005226,1817.4,1817.0,5.50343]
[1743779897634,0.8202,1817.5,1817.1,5.55816994]
[1743779897790,24.754,1817.6,1817.2,5.50284]
[1743779897993,5.50209,1817.5,1817.3,0.20264377]
[1743779898230,6.33357,1817.8,1817.3,0.20264377]
[1743779898440,11.00314,1817.7,1817.3,0.20264377]
[1743779898604,5.50147,1817.7,1817.3,5.70511377]
[1743779898811,5.50147,1817.7,1817.4,0.20264377]
[1743779899322,6.33374,1817.8,1817.4,0.20264377]
[1743779899493,5.50175,1817.7,1817.4,0.20264377]
[1743779899697,5.50175,1817.7,1817.3,0.20264377]
[1743779899916,2.332077,1817.8,1817.3,0.20264377]
[1743779900144,5.50193,1817.6,1817.3,0.20264377]
[1743779900436,5.5021,1817.5,1817.3,0.20264377]
[1743779900638,5.50167,1817.7,1817.3,0.05502452]
[1743779900802,5.50203,1817.6,1817.2,1.00504377]
[1743779900997,5.50253,1817.4,1817.2,0.8024]
[1743779901317,5.50216,1817.5,1817.2,0.8024]
[1743779901527,13.334907,1817.8,1817.3,5.50252]
[1743779901839,5.5015,1817.7,1817.3,5.50262]
[1743779902037,5.5015,1817.7,1817.3,5.70526377]
[1743779902211,5.5015,1817.7,1817.3,0.20264377]
[1743779902543,5.50192,1817.6,1817.2,0.8024]
[1743779902737,11.0039,1817.6,1817.2,6.3052]
[1743779902915,5.50192,1817.6,1817.2,6.3052]
[1743779903109,0.55015,1817.7,1817.2,0.20264377]
[1743779903311,5.50261,1817.4,1817.2,0.20264377]
[1743779903637,5.50261,1817.4,1817.0,0.0550278]
[1743779903638,5.50357,1817.0,1816.9,0.20264377]
[1743779903936,5.50354,1817.1,1816.8,0.39461449]
[1743779904147,0.7621,1817.3,1816.8,5.50394]
[1743779904303,0.8002,1817.6,1817.0,5.50353]
[1743779904505,5.50257,1817.4,1816.9,5.50372]
[1743779904803,5.50415,1816.9,1816.7,0.59758794]
[1743779905002,5.50428,1816.8,1816.5,0.20264377]
[1743779905203,5.50408,1816.9,1816.4,6.48161946]
[1743779905204,5.50407,1816.9,1816.4,6.48161946]
[1743779905446,5.50449,1816.7,1816.4,1.37144076]
[1743779905647,5.50425,1816.8,1816.4,0.97633511]
[1743779905853,5.50425,1816.8,1816.3,11.40629497]
[1743779905854,1.100817,1816.8,1816.3,0.19813511]
[1743779906033,5.50539,1816.4,1816.3,0.19813511]
[1743779906555,0.7826,1817.0,1816.3,5.50559]
[1743779906846,5.48744342,1817.2,1816.3,5.50559]
[1743779906847,0.7543,1817.3,1816.7,5.50445]
[1743779907032,5.50279,1817.3,1816.8,6.265]
[1743779907356,6.25607,1817.6,1816.9,0.05503068]
[1743779907519,5.50222,1817.5,1817.0,5.50343]
[1743779907723,0.7543,1817.6,1816.9,0.1980843]
[1743779908036,0.7543,1817.6,1816.5,6.16]
[1743779908037,5.50392,1816.9,1816.5,12.9751043]
[1743779908260,5.5015,1817.7,1817.2,5.50273]
[1743779908584,5.5023,1817.5,1817.0,12.78855]
[1743779908733,5.50317,1817.2,1816.8,0.1980843]
[1743779908929,6.05275,1817.4,1816.9,5.50372]
[1743779909269,6.05275,1817.4,1816.7,0.8056]
[1743779909270,0.55023,1817.4,1816.7,1.0036843]
[1743779909570,5.50372,1817.0,1816.7,1.0036843]
[1743779909768,5.50372,1817.0,1816.7,0.1980843]
[1743779909959,5.50372,1817.0,1816.6,12.79473]
[1743779910161,5.50298,1817.2,1816.7,5.55932038]
[1743779910559,5.50317,1817.2,1816.6,7.29]
[1743779910868,5.50355,1817.1,1816.7,0.05503674]
[1743779911080,5.50337,1817.1,1816.7,5.55941795]
[1743779911247,6.053307,1817.2,1816.8,5.50413]
[1743779911443,6.053307,1817.2,1816.6,11.00913]
[1743779911444,11.00695,1817.1,1816.6,11.00913]
[1743779911650,5.50347,1817.1,1816.7,5.55941797]
[1743779911997,6.053447,1817.2,1816.8,5.50416]
[1743779912178,5.50329,1817.1,1816.7,5.55947797]
[1743779912350,6.053447,1817.2,1816.7,5.75768499]
[1743779912674,5.50327,1817.1,1816.7,0.19833702]
[1743779912875,5.5037,1817.0,1816.6,5.70310702]
[1743779913300,0.6053447,1817.1,1816.7,0.05503799]
[1743779913461,0.8159,1817.4,1816.7,5.55940799]
[1743779913804,5.50297,1817.2,1816.7,0.19833702]
[1743779914000,5.50418,1816.8,1816.3,0.59474337]
[1743779914297,5.50482,1816.6,1816.3,0.59474337]
[1743779914601,5.50482,1816.6,1816.1,6.32604]
[1743779914602,5.50498,1816.6,1816.1,6.52450702]
[1743779914798,5.50518,1816.5,1816.1,12.03064702]
[1743779915098,5.50509,1816.5,1816.1,6.52449702]
[1743779915302,5.50509,1816.5,1815.9,0.40708933]
[1743779915303,1.100991,1816.5,1816.2,0.19833702]
[1743779915459,5.50569,1816.3,1816.2,7.02e-06]
[1743779915662,18.22613342,1816.3,1816.2,7.02e-06]
[1743779915901,5.50749,1815.8,1815.4,5.50841]
[1743779916107,5.50749,1815.8,1815.3,5.50869]
[1743779916108,5.50777,1815.7,1815.3,5.90530214]
[1743779916401,6.30416,1816.0,1815.1,0.1]
[1743779916402,5.50842,1815.4,1815.1,0.1]
[1743779916576,5.50796,1815.6,1815.1,0.1]
[1743779916776,0.550796,1815.6,1815.3,5.5086]
[1743779916978,5.50829,1815.5,1815.1,0.1]
[1743779917183,5.50738,1815.8,1815.4,5.50824]
[1743779917379,5.50722,1815.8,1815.4,11.01654]
[1743779917581,5.50701,1815.9,1815.5,5.50804]
[1743779917877,5.50701,1815.9,1815.2,5.50888]
[1743779917878,5.50793,1815.6,1815.2,5.50888]
[1743779918083,5.50758,1815.7,1815.2,5.50888]
[1743779918285,5.50762,1815.7,1815.1,0.8594]
[1743779918484,5.50777,1815.7,1815.1,0.1]
[1743779918679,5.50815,1815.5,1815.1,5.60923]
[1743779918881,5.50757,1815.7,1815.3,5.50854]
[1743779919083,6.688163,1815.9,1815.5,5.50788]
[1743779919283,0.6688163,1815.8,1815.3,0.7521]
[1743779919616,5.50859,1815.4,1815.1,0.1]
[1743779919812,11.01724,1815.4,1815.1,0.1]
[1743779919995,5.50903,1815.2,1815.1,0.1]
[1743779921116,6.30703,1815.2,1815.1,0.1]
[1743779921284,5.51073,1814.7,1814.4,6.16]
[1743779921484,5.50996,1814.9,1814.4,5.51125]
[1743779921882,5.51104,1814.6,1814.1,8.0687]
[1743779922097,5.51162,1814.4,1814.1,0.8887]
[1743779922283,11.02244,1814.5,1814.1,0.1]
[1743779922486,0.7754,1814.7,1814.1,6.26]
[1743779922691,5.48744342,1815.1,1814.7,5.51053]
[1743779922692,5.50948,1815.1,1814.7,5.51053]
[1743779923010,5.50943,1815.1,1814.6,5.5106]
[1743779923217,5.50974,1815.0,1814.6,5.51064]
[1743779923530,5.50949,1815.1,1814.7,5.51044]
[1743779923811,0.7708,1815.3,1814.6,5.51085]
[1743779924117,5.51039,1814.8,1814.4,6.28703]
[1743779924475,5.50933,1815.1,1814.3,6.16]
[1743779924476,5.51085,1814.6,1814.3,6.16]
[1743779924681,6.26365,1814.8,1814.3,0.05511204]
[1743779925012,11.0215,1814.7,1814.3,5.51175]
[1743779925177,5.51086,1814.6,1814.2,11.67202]
[1743779925383,5.51086,1814.6,1814.1,0.1]
[1743779925384,5.51207,1814.2,1814.1,0.1]
[1743779925575,5.51187,1814.3,1814.1,0.1]
[1743779925778,1.102155,1814.6,1814.1,0.1]
[1743779925988,5.51099,1814.6,1814.1,5.6121]
[1743779926290,5.51155,1814.4,1814.1,0.1]
[1743779926501,5.51131,1814.5,1814.1,0.1]
[1743779926820,0.7534,1814.8,1814.1,0.1]
[1743779927044,5.51148,1814.4,1814.1,0.1]
[1743779927721,6.26377,1814.8,1814.1,0.1]
[1743779927917,5.51188,1814.3,1814.1,0.1]
[1743779928083,5.51117,1814.5,1814.1,0.1]
[1743779928292,5.51116,1814.5,1814.1,0.1]
[1743779928499,11.02261,1814.5,1814.1,0.1]
[1743779928699,5.51159,1814.4,1814.1,0.1]
[1743779929034,1.340967,1814.7,1814.1,0.1]
[1743779929196,5.51189,1814.3,1814.1,0.1]
[1743779929398,5.5117,1814.4,1814.1,0.1]
[1743779929694,5.51116,1814.5,1814.1,0.1]
[1743779929896,0.7534,1814.8,1814.2,0.05512111]
[1743779930131,5.51036,1814.8,1814.3,6.33374]
[1743779930332,5.51128,1814.5,1814.2,7.131]
[1743779930517,24.772,1814.9,1814.2,12.64306]
[1743779930719,5.5105,1814.8,1814.4,5.51126]
[1743779930926,24.772,1814.9,1814.2,12.64294]
[1743779930927,5.51099,1814.6,1814.2,12.64294]
[1743779931102,5.51058,1814.7,1814.2,12.64293]
[1743779931440,5.51058,1814.7,1814.3,5.51163]
[1743779931636,5.51058,1814.7,1814.4,0.05511171]
[1743779931637,5.51081,1814.7,1814.4,0.05511171]
[1743779931800,24.772,1814.9,1814.3,6.16]
[1743779931801,5.51111,1814.6,1814.3,6.16]
[1743779931994,5.5112,1814.5,1814.3,6.16]
[1743779932194,5.51146,1814.4,1814.1,5.61224]
[1743779932398,5.51146,1814.4,1814.1,0.1]
[1743779932632,0.7622,1814.6,1814.1,5.6123]
[1743779932895,5.51177,1814.3,1814.1,0.1]
[1743779933095,5.51119,1814.5,1814.1,0.1]
[1743779933324,5.51191,1814.3,1814.1,0.1]
[1743779933525,5.51207,1814.2,1814.1,0.1]
[1743779934818,5.51497,1813.3,1813.0,6.9774]
[1743779935142,5.51392,1813.6,1813.0,6.33292]
[1743779935143,5.51464,1813.4,1813.0,6.33292]
[1743779935325,5.51511,1813.2,1812.8,5.51623]
[1743779935527,11.03019,1813.3,1812.9,5.51582]
[1743779935728,5.51511,1813.2,1812.7,6.9774]
[1743779936048,5.51427,1813.5,1813.1,5.61537]
[1743779936219,5.51423,1813.5,1813.2,5.51508]
[1743779936413,5.5138,1813.7,1813.2,5.51511]
[1743779936630,5.51414,1813.6,1813.2,0.8324]
[1743779936848,5.5142,1813.5,1813.2,0.8324]
[1743779937042,5.51424,1813.5,1813.2,6.34748]
[1743779937252,5.51496,1813.3,1813.1,0.1]
[1743779937553,5.51511,1813.2,1813.1,0.1]
[1743779940352,5.51511,1813.2,1813.1,1e-05]
[1743779940353,6.28911,1813.2,1813.1,1e-05]
[1743779940556,9.28911,1813.2,1813.1,1e-05]
[1743779940777,12.06915903,1813.2,1813.1,1e-05]
[1743779941856,9.06915903,1813.2,1813.1,1e-05]
[1743779942266,5.51511,1813.2,1813.1,1e-05]
[1743779942570,5.51451,1813.4,1813.1,1e-05]
[1743779942780,5.51504,1813.3,1813.1,1e-05]
[1743779942975,5.51466,1813.4,1813.1,5.5154]
[1743779943277,5.51464,1813.4,1813.1,0.80411]
[1743779943484,5.51466,1813.4,1813.1,0.80411]
[1743779943787,5.51511,1813.2,1813.1,1e-05]
[1743779943941,5.5151,1813.3,1813.1,1e-05]
[1743779944141,5.51511,1813.2,1813.1,1e-05]
[1743779944387,6.26811,1813.2,1813.1,1e-05]
[1743779945079,9.26811,1813.2,1813.1,1e-05]
[1743779945252,11.29517534,1813.2,1813.1,1e-05]
[1743779945575,11.29517534,1813.2,1812.3,0.7699]
[1743779945778,5.51754,1812.4,1812.1,0.1]
[1743779945992,5.51649,1812.8,1812.1,0.1]
[1743779946174,5.51679,1812.7,1812.3,5.51762]
[1743779946677,5.51697,1812.6,1812.2,5.518]
[1743779946881,31.856,1813.1,1812.3,5.51762]
[1743779947181,32.27494425,1813.1,1812.2,0.1947272]
[1743779947382,5.51603,1812.9,1812.4,5.5174]
[1743779947681,5.51572,1813.0,1812.6,5.51693]
[1743779947885,5.51572,1813.0,1812.6,6.16]
[1743779947886,5.51602,1812.9,1812.6,6.16]
[1743779948091,0.41728949,1813.2,1812.6,6.16]
[1743779948298,5.51663,1812.7,1812.6,6.16]
[1743779948494,5.51754,1812.4,1812.3,0.19465051]
[1743779948656,6.619948,1812.7,1812.3,0.19465051]
[1743779948657,5.51695,1812.6,1812.3,0.19465051]
[1743779948858,5.51754,1812.4,1812.2,0.8001]
[1743779949169,5.51785,1812.3,1812.2,0.8001]
[1743779949378,6.619988,1812.7,1812.2,0.8001]
[1743779949590,5.51518,1813.2,1812.3,0.05518098]
[1743779949591,5.51621,1812.9,1812.3,0.05518098]
[1743779949782,5.51621,1812.9,1812.4,5.51737]
[1743779950083,5.51633,1812.8,1812.3,5.71232051]
[1743779950389,5.51689,1812.7,1812.3,0.19465051]
[1743779950697,5.51694,1812.6,1812.3,0.19465051]
[1743779950898,13.31576,1813.3,1812.2,0.8001]
[1743779950899,5.51756,1812.4,1812.2,0.99475051]
[1743779951080,5.51785,1812.3,1812.2,0.99475051]
[1743779951265,5.51815,1812.2,1812.1,0.1]
[1743779951996,5.51785,1812.3,1812.1,0.1]
[1743779952200,5.51815,1812.2,1812.1,0.1]
[1743779954016,5.51794,1812.3,1812.1,0.1]
[1743779954393,5.51733,1812.5,1812.1,5.61842]
[1743779954570,5.51767,1812.4,1812.1,0.1]
[1743779954768,5.51681,1812.7,1812.3,5.51772]
[1743779955007,5.51681,1812.7,1812.4,0.05517244]
[1743779955214,5.51696,1812.6,1812.3,5.51772]
[1743779955367,5.51636,1812.8,1812.3,5.57300979]
[1743779955562,11.03231,1812.9,1812.5,5.51722]
[1743779955811,5.51678,1812.7,1812.4,0.19502171]
[1743779955967,5.51708,1812.6,1812.4,0.19502171]
[1743779956166,5.51747,1812.5,1812.3,0.19502171]
[1743779956412,5.51754,1812.4,1812.3,0.19502171]
[1743779956705,5.51815,1812.2,1812.1,0.1]
[1743779958716,5.51998,1811.6,1811.5,0.19530688]
[1743779958918,5.51998,1811.6,1811.1,0.1]
[1743779958919,5.52103,1811.3,1811.1,0.1]
[1743779959102,5.52095,1811.3,1811.1,0.1]
[1743779959308,5.51876,1812.0,1811.1,0.1]
[1743779959616,5.52026,1811.6,1811.3,0.7928]
[1743779959804,5.52059,1811.4,1811.1,1.08816575]
[1743779959982,5.52059,1811.4,1811.1,0.8928]
[1743779960174,5.52096,1811.3,1811.1,0.8928]
[1743779960374,5.5212,1811.2,1811.1,0.8928]
[1743779960574,5.5212,1811.2,1811.1,0.1]
[1743779961017,5.52062,1811.4,1811.1,0.1]
[1743779961544,5.5212,1811.2,1811.1,0.1]
[1743779961828,5.52028,1811.5,1811.1,0.1]
[1743779962030,5.5212,1811.2,1811.1,0.1]
[1743779962515,12.4922,1811.2,1811.1,0.1]
[1743779963928,5.51991,1811.7,1811.3,5.52082]
[1743779964137,5.52009,1811.6,1811.2,0.8244]
[1743779964294,5.52029,1811.5,1811.3,0.19586651]
[1743779964827,5.52014,1811.6,1811.4,0.19586651]
[1743779965029,5.52028,1811.5,1811.4,0.19586651]
[1743779965402,5.5212,1811.2,1811.1,0.1]
[1743779966209,15.4732,1811.2,1811.1,1e-05]
[1743779966936,12.4732,1811.2,1811.1,1e-05]
[1743779968719,15.4732,1811.2,1811.1,1e-05]
[1743779968944,20.60406534,1811.2,1811.1,1e-05]
[1743779969614,17.60406534,1811.2,1811.1,1e-05]
[1743779969810,5.5212,1811.2,1811.1,1e-05]
[1743779972948,37.28201,1811.3,1811.1,1e-05]
[1743779973155,5.5212,1811.2,1811.1,1e-05]
[1743779974758,5.52061,1811.4,1811.1,0.76221]
[1743779974927,5.52092,1811.3,1811.1,0.76221]
[1743779975132,5.52092,1811.3,1811.1,1e-05]
[1743779975133,5.5212,1811.2,1811.1,1e-05]
[1743779976255,6.625412,1811.2,1811.1,1e-05]
[1743779976953,5.52064,1811.4,1811.1,1e-05]
[1743779977253,5.5212,1811.2,1811.1,0.80241]
[1743779977432,5.52094,1811.3,1811.1,0.80241]
[1743779977634,5.5212,1811.2,1811.1,0.80241]
[1743779978055,5.5212,1811.2,1811.1,1e-05]
[1743779980473,17.890216,1811.2,1811.1,1e-05]
[1743779981269,13.2339,1811.2,1811.1,1e-05]
[1743779981628,12.4562,1811.2,1811.1,1e-05]
[1743779983555,15.4562,1811.2,1811.1,1e-05]
[1743779984162,5.5212,1811.2,1811.1,1e-05]
[1743779984662,6.72158061,1812.0,1811.1,6.54524978]
[1743779984959,6.72158061,1812.0,1811.2,0.19609978]
[1743779984960,5.52031,1811.5,1811.2,0.19609978]
[1743779985132,5.52059,1811.4,1811.2,0.19609978]
[1743779985333,11.04138,1811.4,1811.2,0.19609978]
[1743779985532,5.52089,1811.3,1811.2,0.19609978]
[1743779985771,5.5212,1811.2,1811.1,0.39819666]
[1743779986331,6.625409,1811.2,1811.1,1e-05]
[1743779987075,5.5212,1811.2,1811.1,1e-05]
[1743779988657,5.9316597,1811.2,1811.1,1e-05]
[1743779993081,14.41910312,1811.2,1811.1,1e-05]
[1743779993291,14.41910312,1811.2,1810.4,0.7921]
[1743779993292,5.52333,1810.5,1810.4,0.7921]
[1743779994305,5.52283,1810.7,1810.4,0.7921]
[1743779994457,5.52305,1810.6,1810.4,0.7921]
[1743779994653,5.52333,1810.5,1810.4,0.7921]
[1743779995209,5.52333,1810.5,1810.2,0.453424]
[1743779995210,5.52394,1810.3,1810.2,0.39818666]
[1743779995355,5.52394,1810.3,1810.2,0.59591436]
[1743779995555,5.52394,1810.3,1810.2,0.1977277]
[1743779995850,5.52394,1810.3,1810.1,0.8847]
[1743779996072,5.52425,1810.2,1810.1,0.8847]
[1743779996570,5.52305,1810.6,1810.1,1.08225365]
[1743779996771,5.52275,1810.7,1810.1,1.08225365]
[1743779997013,5.52303,1810.6,1810.4,0.8134]
[1743779997387,6.935,1811.1,1810.4,7.02582444]
[1743779997388,5.52245,1810.8,1810.4,7.02582444]
[1743779997588,5.52245,1810.8,1810.5,0.19738328]
[1743779997796,5.52212,1810.9,1810.5,5.72064328]
[1743779997977,5.52303,1810.6,1810.5,0.19738328]
[1743779998309,5.52333,1810.5,1810.4,1.21158666]
[1743779998542,5.52394,1810.3,1810.2,0.19738328]
[1743779999156,5.52425,1810.2,1810.1,0.1]
[1743780001346,5.52379,1810.4,1810.1,0.1]
[1743780001516,6.06,1811.1,1810.1,0.1]
[1743780001517,5.52293,1810.7,1810.3,5.52377]
[1743780001709,13.23674342,1811.2,1810.2,0.8214]
[1743780001710,3.0,1811.0,1810.2,0.8214]
[1743780001904,5.52314,1810.6,1810.2,1.01878328]
[1743780002262,5.52211,1810.9,1810.3,0.19738328]
[1743780002445,5.52282,1810.7,1810.3,5.77644606]
[1743780002750,5.52282,1810.7,1810.3,11.24499328]
[1743780002947,13.23674342,1811.2,1810.3,0.59723553]
[1743780003105,5.5235,1810.5,1810.3,0.59723553]
[1743780003450,5.52394,1810.3,1810.1,0.1]
[1743780003669,5.52425,1810.2,1810.1,0.1]
[1743780003878,5.52394,1810.3,1810.1,0.1]
[1743780004032,3.0,1810.8,1810.1,0.8504]
[1743780004224,5.52308,1810.6,1810.2,5.52403]
[1743780004421,5.52211,1810.9,1810.1,6.37492]
[1743780004640,5.52378,1810.4,1810.1,0.8504]
[1743780004838,0.4232471,1810.9,1810.1,1.04778328]
[1743780004839,5.52412,1810.3,1810.1,1.04778328]
[1743780005040,5.52425,1810.2,1810.1,1.04778328]
[1743780005265,5.52425,1810.2,1810.1,0.29738328]
[1743780005477,5.52425,1810.2,1810.1,0.1]
[1743780005764,5.52405,1810.3,1810.1,0.1]
[1743780006071,5.52367,1810.4,1810.1,0.1]
[1743780006269,0.8277,1810.8,1810.1,0.662457]
[1743780006270,10.7637,1810.8,1810.1,0.662457]
[1743780006431,5.52351,1810.5,1810.1,5.62439]
[1743780006635,0.4232471,1810.9,1810.4,5.52352]
[1743780006863,0.4232471,1810.9,1810.2,6.39196762]
[1743780006864,6.30003,1811.3,1810.7,0.8127]
[1743780007162,5.52242,1810.8,1810.7,0.8127]
[1743780007326,5.52183,1811.0,1810.7,0.8127]
[1743780007532,5.52132,1811.2,1810.8,5.5223]
[1743780007846,0.4129725,1811.3,1810.9,5.57728667]
[1743780007847,11.4550625,1811.3,1810.9,5.57728667]
[1743780008050,5.52123,1811.2,1810.8,12.3158]
[1743780008346,5.52091,1811.3,1810.9,5.57721358]
[1743780008548,5.5204,1811.5,1811.1,6.32919]
[1743780008752,5.5212,1811.2,1811.1,0.8078]
[1743780009142,8.5205,1811.5,1810.9,6.16]
[1743780009378,5.52155,1811.1,1810.9,6.16]
[1743780009684,5.52099,1811.3,1810.8,6.52721585]
[1743780009840,5.52089,1811.3,1810.9,5.57720393]
[1743780010042,11.04144,1811.4,1811.0,5.52179]
[1743780010243,5.92524511,1811.5,1810.9,5.57731393]
[1743780010571,6.935,1811.7,1810.9,5.57731393]
[1743780010572,5.52117,1811.3,1810.9,1.38785124]
[1743780010774,5.52061,1811.4,1810.9,1.38785124]
[1743780010942,5.52061,1811.4,1811.0,6.35285]
[1743780011143,5.52144,1811.2,1811.0,0.8313]
[1743780011386,5.5215,1811.1,1811.0,0.8313]
[1743780011552,5.52196,1811.0,1810.8,0.19711585]
[1743780012055,5.52303,1810.6,1810.5,0.19711585]
[1743780012477,5.52303,1810.6,1810.4,0.8175]
[1743780012661,5.52333,1810.5,1810.4,0.8175]
[1743780013184,5.52274,1810.7,1810.4,0.8175]
[1743780013345,5.52304,1810.6,1810.4,0.8175]
[1743780013566,5.52274,1810.7,1810.4,0.8175]
[1743780013769,5.52315,1810.6,1810.4,0.8175]
[1743780013965,5.52381,1810.4,1810.2,0.7823]
[1743780014191,5.52328,1810.6,1810.2,0.7823]
[1743780014397,5.52325,1810.6,1810.2,6.30638]
[1743780014595,13.66340268,1811.1,1810.3,0.0552334]
[1743780014596,5.52275,1810.7,1810.3,0.0552334]
[1743780014871,5.52243,1810.8,1810.4,5.52356]
[1743780015074,5.52128,1811.2,1810.8,5.5223]
[1743780015392,12.45412,1811.6,1810.7,5.52247]
[1743780015569,0.8049,1812.0,1811.5,0.8303]
[1743780015771,1.437238,1812.0,1811.5,0.8303]
[1743780015970,5.5188,1812.0,1811.6,0.05519777]
[1743780016180,0.8049,1812.3,1811.6,5.51997]
[1743780016512,5.51784,1812.4,1811.5,6.35039]
[1743780016815,11.03776,1812.0,1811.6,5.51982]
[1743780017112,8.51822,1812.2,1811.5,6.35055]
[1743780017343,11.0385,1811.9,1811.5,6.35055]
[1743780017513,5.51976,1811.7,1811.5,0.8303]
[1743780017663,5.51939,1811.8,1811.5,0.8303]
[1743780017869,5.51998,1811.6,1811.5,0.8303]
[1743780018068,5.52089,1811.3,1811.2,0.8047]
[1743780018593,5.52089,1811.3,1811.0,5.52175]
[1743780018594,5.52149,1811.2,1811.0,0.8047]
[1743780018803,5.5215,1811.1,1811.0,0.8047]
[1743780019294,5.52185,1811.0,1810.8,0.7552]
[1743780019498,5.52121,1811.2,1810.8,6.33282941]
[1743780019681,11.04262,1811.2,1810.8,6.27761]
[1743780020012,5.5208,1811.4,1811.0,5.52164]
[1743780020169,5.52078,1811.4,1811.1,5.52147]
[1743780020511,5.52042,1811.5,1811.0,5.52162]
[1743780020807,5.52044,1811.5,1811.1,5.52139]
[1743780021012,5.52044,1811.5,1810.8,2.57090045]
[1743780021013,5.52046,1811.5,1810.8,8.49117067]
[1743780021305,5.5206,1811.4,1810.9,0.84911707]
[1743780021511,5.51973,1811.7,1811.3,5.52084]
[1743780021512,5.51987,1811.7,1811.3,5.52084]
[1743780021715,5.52039,1811.5,1811.1,11.04252]
[1743780021897,5.52003,1811.6,1811.2,5.52104]
[1743780022100,5.5212,1811.2,1811.0,6.16]
[1743780022298,5.52136,1811.2,1810.9,6.3033]
[1743780022472,5.52089,1811.3,1810.9,0.7812]
[1743780022674,3.0,1811.7,1810.9,0.7812]
[1743780022675,5.52007,1811.6,1810.9,0.7812]
[1743780022901,5.52181,1811.0,1810.9,0.7812]
[1743780023107,5.52154,1811.1,1810.9,0.7812]
[1743780023412,0.552007,1811.5,1810.9,0.7812]
[1743780023619,5.52138,1811.2,1810.9,6.3033]
[1743780023766,5.5209,1811.3,1810.9,6.3033]
[1743780024117,5.52061,1811.4,1811.0,5.52167]
[1743780024411,3.0,1811.8,1811.0,5.52162]
[1743780024621,5.51998,1811.6,1811.0,0.0552103]
[1743780024817,11.04016,1811.6,1811.2,5.52091]
[1743780025039,5.51937,1811.8,1811.3,6.30525]
[1743780025187,5.51977,1811.7,1811.3,6.30525]
[1743780025387,11.03904,1811.8,1811.4,5.52046]
[1743780025586,5.51908,1811.9,1811.4,5.52046]
[1743780025936,5.52059,1811.4,1811.3,0.98080554]
[1743780026086,11.593539,1811.4,1811.1,0.7777]
[1743780026289,5.52063,1811.4,1811.1,0.7777]
[1743780026892,5.5212,1811.2,1811.1,0.7777]
[1743780027120,5.52163,1811.1,1810.9,6.16]
[1743780027387,5.52163,1811.1,1810.8,0.7825]
[1743780028030,5.52303,1810.6,1810.5,0.7603]
[1743780028231,11.04709,1810.5,1810.2,0.7603]
[1743780028434,5.52245,1810.8,1810.2,0.7603]
[1743780028435,5.52306,1810.6,1810.2,0.7603]
[1743780028838,5.52306,1810.6,1810.2,6.28442]
[1743780029135,5.52306,1810.6,1810.2,0.7603]
[1743780029304,5.52351,1810.5,1810.2,0.7603]
[1743780029823,5.52398,1810.3,1810.1,0.1]
[1743780030132,11.04816,1810.3,1810.1,0.1]
[1743780030331,5.52398,1810.3,1810.1,0.1]
[1743780030515,5.52425,1810.2,1810.1,0.1]
[1743780031438,6.32025,1810.2,1810.1,1e-05]
[1743780031617,6.32025,1810.2,1809.2,6.16]
[1743780031618,5.52699,1809.3,1809.2,6.16]
[1743780031807,5.5273,1809.2,1809.1,0.1]
[1743780032286,5.5266,1809.5,1809.1,0.1]
[1743780032485,0.796,1809.6,1809.1,5.62754]
[1743780032486,5.52608,1809.6,1809.1,5.62754]
[1743780032692,5.52591,1809.7,1809.2,1.350254]
[1743780032934,16.20797,1809.9,1809.3,5.52679]
[1743780033098,11.05124,1809.8,1809.3,5.52679]
[1743780033306,6.929,1809.9,1809.4,0.05526003]
[1743780033596,5.52498,1810.0,1809.5,5.52626]
[1743780033832,7.7152,1810.4,1810.0,5.52465]
[1743780034039,5.52419,1810.3,1809.9,5.52515]
[1743780034256,5.52409,1810.3,1809.9,5.52504]
[1743780034460,5.52366,1810.4,1809.9,7.246099]
[1743780034674,1.104657,1810.5,1809.8,6.16]
[1743780034675,5.52447,1810.2,1809.8,6.16]
[1743780034875,5.52515,1810.0,1809.8,6.16]
[1743780035170,5.52515,1810.0,1809.7,0.7935]
[1743780035355,5.52468,1810.1,1809.7,6.3192]
[1743780035552,5.52394,1810.3,1809.8,5.52529]
[1743780035866,1.923357,1810.5,1809.9,5.52513]
[1743780036069,6.929,1810.6,1810.0,5.52474]